lending/lending_fUSD_20251124
["ID","MTS","AMOUNT","RATE_DAILY","PERIOD"]
[394845079,1764009031947,-2149.47384289,0.00016912,2]
[394845081,1764009031957,-87.48853983,0.00016912,2]
[394845083,1764009031973,-62.54881365,0.00016912,2]
[394845085,1764009031983,-220.42241092,0.0001699,2]
[394845086,1764009031993,-220.42241092,0.0001699,2]
[394845087,1764009032004,-151.0,0.00016997,2]
[394845088,1764009032015,-300.0,0.00016998,2]
[394845089,1764009032026,-300.0,0.00016998,2]
[394845090,1764009032035,-1200.0,0.00016998,2]
[394845091,1764009032047,-510.0,0.00016998,2]
[394845092,1764009032058,-500.0,0.00016999,2]
[394845093,1764009032068,-236.20196132,0.00016999,2]
[394845094,1764009032078,-500.0,0.00016999,2]
[394845095,1764009032087,-224.11505661,0.00016999,2]
[394845096,1764009032097,-500.0,0.00016999,2]
[394845097,1764009032107,-500.0,0.00016999,2]
[394845098,1764009032116,-250.02703424,0.00016999,2]
[394845099,1764009032127,-500.0,0.00016999,2]
[394845100,1764009032136,-500.0,0.00016999,2]
[394845101,1764009032146,-500.0,0.00016999,2]
[394845102,1764009032156,-500.0,0.00016999,2]
[394845103,1764009032166,-162.0244453,0.00016999,2]
[394845104,1764009032180,-246.37116376,0.00016999,2]
[394845105,1764009032190,-500.0,0.00016999,2]
[394845106,1764009032200,-500.0,0.00016999,2]
[394845107,1764009032210,-500.0,0.00016999,2]
[394845108,1764009032220,-500.0,0.00016999,2]
[394845109,1764009032230,-500.0,0.00016999,2]
[394845110,1764009032240,-500.0,0.00016999,2]
[394845111,1764009032249,-500.0,0.00016999,2]
[394845112,1764009032259,-500.0,0.00016999,2]
[394845113,1764009032268,-500.0,0.00016999,2]
[394845114,1764009032278,-500.0,0.00016999,2]
[394845115,1764009032287,-500.0,0.00016999,2]
[394845116,1764009032297,-500.0,0.00016999,2]
[394845117,1764009032306,-500.0,0.00016999,2]
[394845118,1764009032315,-500.0,0.00016999,2]
[394845120,1764009032325,-500.0,0.00016999,2]
[394845122,1764009032334,-500.0,0.00016999,2]
[394845124,1764009032344,-500.0,0.00016999,2]
[394845126,1764009032353,-500.0,0.00016999,2]
[394845128,1764009032363,-500.0,0.00016999,2]
[394845130,1764009032374,-500.0,0.00016999,2]
[394845132,1764009032383,-500.0,0.00016999,2]
[394845134,1764009032392,-500.0,0.00016999,2]
[394845136,1764009032402,-500.0,0.00016999,2]
[394845138,1764009032412,-500.0,0.00016999,2]
[394845140,1764009032421,-500.0,0.00016999,2]
[394845143,1764009032430,-500.0,0.00016999,2]
[394845144,1764009032440,-500.0,0.00016999,2]
[394845145,1764009032449,-500.0,0.00016999,2]
[394845146,1764009032458,-500.0,0.00016999,2]
[394845147,1764009032467,-500.0,0.00016999,2]
[394845148,1764009032476,-500.0,0.00016999,2]
[394845149,1764009032486,-500.0,0.00016999,2]
[394845150,1764009032495,-500.0,0.00016999,2]
[394845151,1764009032504,-202.69085409,0.00016999,2]
[394845152,1764009032515,-500.0,0.00016999,2]
[394845153,1764009032524,-500.0,0.00016999,2]
[394845156,1764009032535,-500.0,0.00016999,2]
[394845157,1764009032544,-500.0,0.00016999,2]
[394845159,1764009032553,-500.0,0.00016999,2]
[394845161,1764009032563,-500.0,0.00016999,2]
[394845162,1764009032572,-500.0,0.00016999,2]
[394845163,1764009032581,-613.4435226,0.00016999,2]
[394845164,1764009032590,-613.4435226,0.00016999,2]
[394845165,1764009032600,-613.4435226,0.00016999,2]
[394845166,1764009032610,-613.4435226,0.00016999,2]
[394845167,1764009032619,-613.4435226,0.00016999,2]
[394845168,1764009032629,-613.4435226,0.00016999,2]
[394845169,1764009032638,-613.4435226,0.00016999,2]
[394845170,1764009032648,-613.4435226,0.00016999,2]
[394845171,1764009032657,-613.4435226,0.00016999,2]
[394845172,1764009032667,-613.4435226,0.00016999,2]
[394845173,1764009032676,-613.4435226,0.00016999,2]
[394845174,1764009032686,-613.4435226,0.00016999,2]
[394845175,1764009032694,-613.4435226,0.00016999,2]
[394845176,1764009032704,-613.4435226,0.00016999,2]
[394845177,1764009032714,-613.4435226,0.00016999,2]
[394845179,1764009032727,-613.4435226,0.00016999,2]
[394845181,1764009032737,-613.4435226,0.00016999,2]
[394845183,1764009032746,-613.4435226,0.00016999,2]
[394845185,1764009032755,-613.4435226,0.00016999,2]
[394845187,1764009032764,-613.4435226,0.00016999,2]
[394845189,1764009032773,-613.4435226,0.00016999,2]
[394845190,1764009032783,-613.4435226,0.00016999,2]
[394845191,1764009032792,-613.4435226,0.00016999,2]
[394845192,1764009032801,-613.4435226,0.00016999,2]
[394845193,1764009032810,-613.4435226,0.00016999,2]
[394845194,1764009032820,-613.4435226,0.00016999,2]
[394845195,1764009032829,-613.4435226,0.00016999,2]
[394845196,1764009032839,-613.4435226,0.00016999,2]
[394845197,1764009032848,-613.4435226,0.00016999,2]
[394845198,1764009032858,-613.4435226,0.00016999,2]
[394845199,1764009032868,-629.1837219,0.00016999,2]
[394845201,1764009032878,-629.1837219,0.00016999,2]
[394845202,1764009032887,-629.1837219,0.00016999,2]
[394845203,1764009032898,-629.1837219,0.00016999,2]
[394845204,1764009032907,-629.1837219,0.00016999,2]
[394845205,1764009032917,-629.1837219,0.00016999,2]
[394845206,1764009032926,-629.1837219,0.00016999,2]
[394845207,1764009032935,-629.1837219,0.00016999,2]
[394845208,1764009032945,-629.1837219,0.00016999,2]
[394845209,1764009032954,-629.1837219,0.00016999,2]
[394845210,1764009032964,-629.1837219,0.00016999,2]
[394845211,1764009032977,-629.1837219,0.00016999,2]
[394845212,1764009032986,-629.18372183,0.00016999,2]
[394845213,1764009032996,-250.0,0.00017,2]
[394845214,1764009033005,-55867.7283627,0.00017,2]
[394845215,1764009033019,-1139.34274386,0.00017,2]
[394845216,1764009033031,-531.67165279,0.00017,2]
[394845217,1764009033048,-776.15703811,0.00017,2]
[394845218,1764009033059,-6177.54640397,0.00017,2]
[394845219,1764009033071,-1353.92747061,0.00017,2]
[394845220,1764009033082,-2009.04623497,0.00017,2]
[394845221,1764009033097,-301.81779609,0.00017,2]
[394845226,1764009037891,-17000.0,0.00017,2]
[394845228,1764009037903,-1928.80999808,0.00017,2]
[394845229,1764009037915,-762.64682151,0.00017,2]
[394845230,1764009037949,-2848.0453633,0.00017,2]
[394845231,1764009037962,-824.0894058,0.00017,2]
[394845233,1764009038147,-501.41000007,0.00017,2]
[394845259,1764009039992,-357.83589238,0.00017,2]
[394845260,1764009040048,-5073596.22579913,0.00017,2]
[394845261,1764009040260,-3465.462,0.00017,2]
[394845262,1764009040272,-652.89204246,0.00017,2]
[394845263,1764009040283,-265.695,0.00017,2]
[394845264,1764009040294,-736.5478768,0.00017,2]
[394845265,1764009040309,-776.94153782,0.00017,2]
[394845266,1764009040321,-6511.95017592,0.00017,2]
[394845280,1764009040546,-29185.24241572,0.00017,2]
[394845309,1764009045154,-411078.80705529,0.00017,2]
[394845323,1764009046079,-283.02304846,0.00017,2]
[394845324,1764009046294,-1000.0,0.00017,2]
[394845325,1764009046351,-434.81012,0.00017,2]
[394845326,1764009046470,-226083.94703407,0.00017,2]
[394845327,1764009046484,-88043.33340312,0.00017,2]
[394845329,1764009210360,153.63,8.54e-05,2]
[394845330,1764009210625,153.63,0.00010249,2]
[394845331,1764009210887,153.63,0.00011957,2]
[394845332,1764009211198,153.63,0.00013665,2]
[394845333,1764009211419,153.63,0.00015373,2]
[394845339,1764009906288,150.0,0.00015288,2]
[394845340,1764009906325,150.0,0.00015627,2]
[394845341,1764009906837,150.0,0.00015288,2]
[394845342,1764009906874,150.0,0.000155,2]
[394845343,1764009906956,150.0,0.00015712,2]
[394845344,1764009907446,185.40290565,0.00015288,2]
[394845345,1764009907500,150.0,0.00015288,2]
[394845346,1764009911099,150.0,0.00015288,2]
[394845347,1764009911147,150.0,0.0001553,2]
[394845348,1764009911661,209.77542235,0.00015288,2]
[394845349,1764009912941,150.0,0.00015288,2]
[394845350,1764009916612,150.0,0.00015288,2]
[394845351,1764009917393,150.0,0.00015288,2]
[394845352,1764009923268,150.0,0.00015288,2]
[394845353,1764009923351,150.0,0.00015288,2]
[394845354,1764009923388,150.00000001,0.00015288,2]
[394845356,1764009924485,245.97209231,0.00015288,2]
[394845357,1764009924550,150.0,0.00015288,2]
[394845359,1764009929724,150.0,0.00015288,2]
[394845360,1764009930135,150.0,0.00015288,2]
[394845361,1764010002545,1156.06,0.00015575,2]
[394845364,1764010058808,1000.0,0.00015584,2]
[394845365,1764010060944,-150.0,0.00015773,2]
[394845366,1764010060965,-150.0,0.00015854,2]
[394845367,1764010060987,-150.0,0.00015925,2]
[394845368,1764010061007,-150.0,0.00015967,2]
[394845369,1764010061028,-150.0,0.00016016,2]
[394845370,1764010061048,-950.0,0.00016054,2]
[394845371,1764010090937,200.0,0.00015694,2]
[394845372,1764010166947,1880.08957968,0.00015688,2]
[394845373,1764010166968,58.70042032,0.00015688,2]
[394845374,1764010212635,200.0,0.00015666,2]
[394845381,1764010232117,-152.19329143,0.00016037,2]
[394845382,1764010232127,-902.42,0.00016054,2]
[394845383,1764010232139,-150.0,0.00016137,2]
[394845384,1764010232148,-150.0,0.00016137,2]
[394845385,1764010232158,-150.0,0.00016137,2]
[394845386,1764010232168,-150.0,0.00016137,2]
[394845387,1764010232178,-166.66,0.00016154,2]
[394845388,1764010232187,-1460.01,0.00016224,2]
[394845389,1764010232197,-150.0,0.00016258,2]
[394845390,1764010232205,-250.0,0.00016262,2]
[394845391,1764010232215,-500.0,0.000163,2]
[394845392,1764010232224,-150.0,0.00016307,2]
[394845393,1764010232233,-150.0,0.00016349,2]
[394845394,1764010232243,-156.433,0.0001635,2]
[394845395,1764010232252,-150.0,0.0001642,2]
[394845396,1764010232262,-1200.0,0.00016437,2]
[394845397,1764010232272,-1823.27,0.00016438,2]
[394845398,1764010232282,-166.66,0.00016494,2]
[394845399,1764010232291,-150.0,0.00016501,2]
[394845400,1764010232300,-150.0,0.00016562,2]
[394845401,1764010232310,-150.0,0.00016647,2]
[394845402,1764010232319,-191.12,0.00016712,2]
[394845403,1764010232333,-300.0,0.00016729,2]
[394845404,1764010232345,-300.0,0.00016729,2]
[394845405,1764010232355,-740.19068473,0.0001673,2]
[394845406,1764010232364,-210.42981203,0.0001673,2]
[394845407,1764010232375,-177.84193022,0.0001673,2]
[394845408,1764010232385,-826.76582034,0.00016732,2]
[394845410,1764010232397,-373.23417966,0.00016732,2]
[394845411,1764010232407,-1889.79542189,0.00016733,2]
[394845414,1764010232419,-545.31,0.00016733,2]
[394845416,1764010232430,-352.59879329,0.00016733,2]
[394845418,1764010232443,-1189.57846084,0.00016733,2]
[394845420,1764010232453,-150.0,0.00016744,2]
[394845422,1764010232463,-196.77454208,0.00016759,2]
[394845423,1764010232472,-500.0,0.00016773,2]
[394845424,1764010232482,-500.0,0.00016773,2]
[394845425,1764010232491,-500.0,0.00016773,2]
[394845426,1764010232501,-500.0,0.00016773,2]
[394845427,1764010232510,-500.0,0.00016773,2]
[394845428,1764010232519,-500.0,0.00016773,2]
[394845429,1764010232529,-498.423967,0.00016773,2]
[394845430,1764010232538,-500.0,0.00016773,2]
[394845431,1764010232549,-500.0,0.00016773,2]
[394845432,1764010232559,-500.0,0.00016773,2]
[394845433,1764010232568,-500.0,0.00016773,2]
[394845434,1764010232578,-150.0,0.00016774,2]
[394845435,1764010232587,-300.0,0.00016797,2]
[394845436,1764010232596,-151.0,0.00016797,2]
[394845437,1764010232605,-1287.08535652,0.00016799,2]
[394845438,1764010232614,-334.0,0.00016799,2]
[394845439,1764010232623,-896.15879611,0.00016799,5]
[394845440,1764010232632,-500.0,0.00016799,2]
[394845441,1764010232642,-291.12804143,0.00016799,2]
[394845442,1764010232651,-398.2171559,0.00016799,2]
[394845443,1764010232661,-500.0,0.00016799,2]
[394845444,1764010232670,-500.0,0.00016799,2]
[394845445,1764010232679,-298.87521838,0.00016799,2]
[394845446,1764010232689,-500.0,0.00016799,2]
[394845447,1764010232699,-500.0,0.00016799,2]
[394845448,1764010232708,-500.0,0.00016799,2]
[394845449,1764010232718,-500.0,0.00016799,2]
[394845450,1764010232727,-500.0,0.00016799,2]
[394845451,1764010232737,-500.0,0.00016799,2]
[394845452,1764010232746,-500.0,0.00016799,2]
[394845453,1764010232755,-500.0,0.00016799,2]
[394845454,1764010232765,-500.0,0.00016799,2]
[394845455,1764010232774,-500.0,0.00016799,2]
[394845456,1764010232783,-500.0,0.00016799,2]
[394845457,1764010232793,-192.00217231,0.00016799,2]
[394845458,1764010232805,-307.99782769,0.00016799,2]
[394845459,1764010232814,-351.60993687,0.00016799,2]
[394845460,1764010232826,-148.39006313,0.00016799,2]
[394845461,1764010232835,-184.92993687,0.00016799,2]
[394845471,1764010240259,-315.07006313,0.00016799,2]
[394845472,1764010240270,-500.0,0.00016799,2]
[394845473,1764010240280,-500.0,0.00016799,2]
[394845475,1764010240290,-500.0,0.00016799,2]
[394845476,1764010240300,-500.0,0.00016799,2]
[394845477,1764010240310,-500.0,0.00016799,2]
[394845478,1764010240320,-500.0,0.00016799,2]
[394845479,1764010240332,-462.40267927,0.00016799,2]
[394845480,1764010240344,-500.0,0.00016799,2]
[394845481,1764010240353,-500.0,0.00016799,2]
[394845482,1764010240363,-500.0,0.00016799,2]
[394845483,1764010240374,-500.0,0.00016799,2]
[394845484,1764010240385,-500.0,0.00016799,2]
[394845485,1764010240396,-500.0,0.00016799,2]
[394845486,1764010240407,-500.0,0.00016799,2]
[394845487,1764010240423,-500.0,0.00016799,2]
[394845488,1764010240433,-500.0,0.00016799,2]
[394845489,1764010240443,-500.0,0.00016799,2]
[394845490,1764010240453,-500.0,0.00016799,2]
[394845491,1764010240463,-500.0,0.00016799,2]
[394845492,1764010240473,-500.0,0.00016799,2]
[394845493,1764010240483,-500.0,0.00016799,2]
[394845494,1764010240495,-500.0,0.00016799,2]
[394845495,1764010240506,-400.0,0.00016799,2]
[394845496,1764010240516,-500.0,0.00016799,2]
[394845497,1764010240526,-500.0,0.00016799,2]
[394845498,1764010240536,-510.53281551,0.00016799,2]
[394845499,1764010240546,-500.0,0.00016799,2]
[394845500,1764010240556,-500.0,0.00016799,2]
[394845501,1764010240567,-350.0,0.00016799,2]
[394845502,1764010240576,-500.0,0.00016799,2]
[394845504,1764010240586,-500.0,0.00016799,2]
[394845505,1764010240597,-1047.78,0.00016799,2]
[394845506,1764010240608,-962.19036524,0.000168,2]
[394845507,1764010240618,-225543.51107271,0.000168,2]
[394845508,1764010240635,-427.85186862,0.000168,2]
[394845510,1764010240647,-768.40000003,0.000168,2]
[394845511,1764010240658,-280.38542682,0.000168,2]
[394845512,1764010240669,-873.39,0.000168,2]
[394845515,1764010240797,-1512.54617867,0.000168,2]
[394845517,1764010240809,-507.25978616,0.000168,2]
[394845520,1764010240820,-2879.43189363,0.000168,2]
[394845523,1764010240832,-527207.22377336,0.000168,2]
[394845527,1764010240845,-464.90006,0.0001683,2]
[394845530,1764010240855,-166.66,0.00016834,2]
[394845533,1764010240864,-1069.3997,0.00016859,2]
[394845536,1764010240874,-80959.6984,0.00016859,2]
[394845539,1764010240885,-235.0806,0.00016859,2]
[394845541,1764010240894,-254.0,0.00016863,2]
[394845543,1764010240904,-506.60742957,0.00016873,2]
[394845545,1764010240914,-500.0,0.00016873,2]
[394845547,1764010240923,-500.0,0.00016873,2]
[394845549,1764010240932,-500.0,0.00016873,2]
[394845551,1764010240941,-491.44400652,0.00016873,2]
[394845553,1764010240950,-500.57621506,0.00016873,2]
[394845555,1764010240959,-500.0,0.00016873,2]
[394845557,1764010240969,-500.0,0.00016873,2]
[394845559,1764010240978,-327.89727296,0.00016873,2]
[394845561,1764010240987,-500.0,0.00016873,2]
[394845563,1764010240996,-166.25018838,0.00016873,2]
[394845565,1764010241006,-500.0,0.00016873,2]
[394845567,1764010241014,-500.0,0.00016873,2]
[394845569,1764010241024,-500.0,0.00016873,2]
[394845571,1764010241033,-568.00209004,0.00016873,2]
[394845573,1764010241044,-305.87253345,0.00016873,2]
[394845575,1764010241053,-500.0,0.00016873,2]
[394845577,1764010241063,-164.89619302,0.00016873,2]
[394845579,1764010241072,-501.54413169,0.00016873,2]
[394845581,1764010241082,-500.0,0.00016873,2]
[394845583,1764010241092,-501.79706774,0.00016873,2]
[394845585,1764010241101,-500.4051858,0.00016873,2]
[394845587,1764010241110,-493.19356656,0.00016873,2]
[394845589,1764010241119,-500.0,0.00016873,2]
[394845591,1764010241129,-1348.284,0.00016873,2]
[394845593,1764010241139,-167.505,0.00016873,2]
[394845595,1764010241148,-33367.2783,0.000169,2]
[394845597,1764010241157,-1000.0,0.000169,2]
[394845599,1764010241167,-184.70679176,0.000169,2]
[394845601,1764010241177,-2500.0,0.000169,2]
[394845603,1764010241187,-1000.0,0.000169,2]
[394845605,1764010241197,-159.86537393,0.000169,2]
[394845607,1764010241206,-220.96140505,0.000169,2]
[394845609,1764010241215,-361.47949087,0.000169,2]
[394845611,1764010241224,-962.19036525,0.000169,2]
[394845613,1764010241233,-3977.28267598,0.00016922,2]
[394845615,1764010241243,-300.0,0.00016956,2]
[394845617,1764010241253,-55642.0,0.00016959,2]
[394845619,1764010241262,-500.0,0.00016973,2]
[394845621,1764010241271,-500.0,0.00016973,2]
[394845623,1764010241281,-348.0453633,0.00016973,2]
[394845625,1764010241291,-501.28182449,0.00016973,2]
[394845627,1764010241300,-526.79019395,0.00016973,2]
[394845629,1764010241309,-500.0,0.00016973,2]
[394845630,1764010241318,-695.42,0.00016986,2]
[394845631,1764010241329,-150.0,0.00016986,2]
[394845632,1764010241343,-150.0,0.00016986,2]
[394845633,1764010241352,-150.0,0.00016986,2]
[394845634,1764010241361,-150.0,0.00016986,2]
[394845635,1764010241371,-150.0,0.00016986,2]
[394845636,1764010241381,-150.0,0.00016986,2]
[394845637,1764010241391,-150.0,0.00016986,2]
[394845638,1764010241401,-150.0,0.00016986,2]
[394845639,1764010241410,-151.0,0.0001699,2]
[394845640,1764010241421,-151.0,0.0001699,2]
[394845641,1764010241430,-151.0,0.0001699,2]
[394845642,1764010241449,-151.0,0.0001699,2]
[394845643,1764010241459,-151.0,0.0001699,2]
[394845644,1764010241470,-151.0,0.0001699,2]
[394845645,1764010241480,-151.0,0.0001699,2]
[394845646,1764010241490,-151.0,0.0001699,2]
[394845647,1764010241500,-151.0,0.0001699,2]
[394845648,1764010241510,-151.0,0.0001699,2]
[394845649,1764010241520,-151.0,0.0001699,2]
[394845650,1764010241530,-151.0,0.0001699,2]
[394845651,1764010241540,-151.0,0.0001699,2]
[394845652,1764010241549,-453.84989098,0.0001699,2]
[394845653,1764010241559,-453.84989098,0.0001699,2]
[394845654,1764010241569,-151.0,0.00016997,2]
[394845655,1764010241578,-2962424.02794705,0.00017,2]
[394845656,1764010241600,-12240.3074764,0.00017,2]
[394845657,1764010241612,-2326.86,0.00017,2]
[394845658,1764010241623,-414.22512696,0.00017,2]
[394845659,1764010245193,-372.39122497,0.00017,2]
[394845660,1764010245206,-456.2420658,0.00017,2]
[394845661,1764010245218,-17734.94926991,0.00017,2]
[394845662,1764010245233,-919.38,0.00017,2]
[394845720,1764010246001,-29741.57281957,0.00017,2]
[394845751,1764010246270,-1180.90794168,0.00017,2]
[394845754,1764010246294,-323.71256065,0.00017,2]
[394845756,1764010246306,-1317.68001,0.00017,2]
[394845758,1764010246317,-9300.0,0.00017,2]
[394845760,1764010246328,-4548.11552004,0.00017,2]
[394845765,1764010246430,-432.60481996,0.00017,2]
[394845766,1764010246442,-618.41830526,0.00017,2]
[394845767,1764010246488,-1440.66315508,0.00017,2]
[394845768,1764010246499,-1248.36147219,0.00017,2]
[394845769,1764010246510,-835.29999935,0.00017,2]
[394845770,1764010246522,-484.62442324,0.00017,2]
[394845771,1764010246533,-1125.6,0.00017,2]
[394845772,1764010246544,-3113.49820194,0.00017,2]
[394845773,1764010246594,-202956.66659688,0.00017,2]
[394845774,1764010246649,-1936.29311706,0.00017,2]
[394845775,1764010246704,-2960.37957675,0.00017,2]
[394845776,1764010246866,-347.65681638,0.00017,2]
[394845858,1764010454171,-5703.35,0.00016346,2]
[394845859,1764010454191,-2751.0,0.0001637,2]
[394845860,1764010454212,-1310.435,0.00016464,2]
[394845861,1764010454232,-166.817,0.00016464,2]
[394845862,1764010454252,-2500.0,0.000167,2]
[394845863,1764010454271,-33357.8684,0.000167,2]
[394845864,1764010454291,-280.6181,0.000167,2]
[394845865,1764010454311,-1200.0,0.00016772,2]
[394845866,1764010454331,-500.0,0.00016773,2]
[394845867,1764010454353,-500.0,0.00016773,2]
[394845868,1764010454374,-171.30312499,0.00016773,2]
[394845869,1764010454395,-500.0,0.00016773,2]
[394845870,1764010454421,-500.0,0.00016773,2]
[394845871,1764010454443,-8094.18170281,0.00016773,2]
[394845872,1764010454464,-4587.28730479,0.00016773,2]
[394845873,1764010454486,-151.0,0.00016797,2]
[394845874,1764010454509,-500.0,0.00016799,2]
[394845875,1764010454528,-500.0,0.00016799,2]
[394845876,1764010454549,-500.0,0.00016799,2]
[394845877,1764010454571,-500.0,0.00016799,2]
[394845878,1764010454590,-500.0,0.00016799,2]
[394845879,1764010454828,-500.0,0.00016799,2]
[394845880,1764010454849,-500.0,0.00016799,2]
[394845881,1764010454870,-500.0,0.00016799,2]
[394845882,1764010454890,-413.88740078,0.00016799,2]
[394845883,1764010454910,-195.61910552,0.00016799,2]
[394845884,1764010454932,-500.0,0.00016799,2]
[394845885,1764010454953,-500.0,0.00016799,2]
[394845886,1764010454973,-500.0,0.00016799,2]
[394845887,1764010454994,-500.0,0.00016799,2]
[394845888,1764010455016,-500.0,0.00016799,2]
[394845889,1764010455037,-500.0,0.00016799,2]
[394845890,1764010455058,-500.0,0.00016799,2]
[394845891,1764010455080,-500.0,0.00016799,2]
[394845892,1764010455101,-500.0,0.00016799,2]
[394845893,1764010455122,-500.0,0.00016799,2]
[394845894,1764010455143,-500.0,0.00016799,2]
[394845895,1764010455165,-500.0,0.00016799,2]
[394845896,1764010455187,-500.0,0.00016799,2]
[394845897,1764010455208,-500.0,0.00016799,2]
[394845898,1764010455238,-500.0,0.00016799,2]
[394845899,1764010455260,-500.0,0.00016799,2]
[394845900,1764010455282,-400.0,0.00016799,2]
[394845901,1764010455305,-500.0,0.00016799,2]
[394845902,1764010455335,-500.0,0.00016799,2]
[394845903,1764010455360,-599.48574355,0.00016799,2]
[394845904,1764010455387,-599.48574355,0.00016799,2]
[394845905,1764010455414,-599.48574355,0.00016799,2]
[394845906,1764010455441,-599.48574355,0.00016799,2]
[394845907,1764010455468,-599.48574355,0.00016799,2]
[394845908,1764010455491,-599.48574355,0.00016799,2]
[394845909,1764010455515,-599.48574355,0.00016799,2]
[394845910,1764010455538,-599.48574355,0.00016799,2]
[394845911,1764010455560,-599.48574355,0.00016799,2]
[394845912,1764010455584,-599.48574355,0.00016799,2]
[394845913,1764010455608,-599.48574355,0.00016799,2]
[394845914,1764010455630,-599.48574355,0.00016799,2]
[394845915,1764010455655,-599.48574355,0.00016799,2]
[394845916,1764010455676,-599.48574355,0.00016799,2]
[394845917,1764010455698,-599.48574355,0.00016799,2]
[394845918,1764010455721,-599.48574355,0.00016799,2]
[394845919,1764010455742,-599.48574355,0.00016799,2]
[394845920,1764010455763,-599.48574355,0.00016799,2]
[394845921,1764010455784,-599.48574355,0.00016799,2]
[394845922,1764010455804,-599.48574355,0.00016799,2]
[394845923,1764010455826,-599.48574355,0.00016799,2]
[394845924,1764010455848,-599.48574355,0.00016799,2]
[394845925,1764010455870,-599.48574355,0.00016799,2]
[394845926,1764010455891,-599.48574355,0.00016799,2]
[394845927,1764010455912,-599.48574355,0.00016799,2]
[394845928,1764010455935,-599.48574355,0.00016799,2]
[394845929,1764010455956,-599.48574355,0.00016799,2]
[394845930,1764010455977,-599.48574355,0.00016799,2]
[394845931,1764010455999,-599.48574355,0.00016799,2]
[394845932,1764010456021,-599.48574355,0.00016799,2]
[394845933,1764010456043,-599.48574355,0.00016799,2]
[394845934,1764010456064,-599.48574355,0.00016799,2]
[394845935,1764010456086,-599.48574355,0.00016799,2]
[394845936,1764010456108,-599.48574355,0.00016799,2]
[394845937,1764010456129,-599.48574355,0.00016799,2]
[394845938,1764010456150,-599.48574355,0.00016799,2]
[394845939,1764010456171,-599.48574355,0.00016799,2]
[394845940,1764010456192,-599.48574355,0.00016799,2]
[394845941,1764010456213,-599.48574355,0.00016799,2]
[394845942,1764010456235,-599.48574355,0.00016799,2]
[394845943,1764010456256,-599.48574355,0.00016799,2]
[394845944,1764010456278,-599.48574355,0.00016799,2]
[394845945,1764010456299,-599.48574342,0.00016799,2]
[394845946,1764010456321,-638938.74588859,0.000168,2]
[394845947,1764010506965,-165.74,0.00016653,2]
[394845948,1764010506984,-470.8692,0.000167,2]
[394845949,1764010507003,-2500.0,0.000167,2]
[394845950,1764010507023,-235.63397832,0.00016773,2]
[394845951,1764010507044,-300.0,0.00016799,2]
[394845952,1764010507065,-1200.0,0.00016799,2]
[394845953,1764010507089,-121061.25411141,0.000168,2]
[394845954,1764010507108,-500.0,0.00016873,2]
[394845955,1764010507128,-500.0,0.00016873,2]
[394845956,1764010507147,-500.0,0.00016873,2]
[394845957,1764010507168,-158.84342817,0.00016873,2]
[394845958,1764010507189,-167.89982544,0.00016873,2]
[394845959,1764010507208,-1000.0,0.000169,2]
[394845960,1764010507228,-181.4011834,0.000169,2]
[394845961,1764010507248,-500.0,0.00016973,2]
[394845962,1764010507267,-500.0,0.00016973,2]
[394845963,1764010507287,-500.0,0.00016973,2]
[394845964,1764010507306,-500.0,0.00016973,2]
[394845965,1764010507325,-229.58849112,0.00016973,2]